[Event "LTU-chT 2019"]
[Site "Lithuania"]
[Date "2019.03.30"]
[Round "4.13"]
[White "Bagvilas, Lukas"]
[Black "Mickevicius, Juras"]
[Result "0-1"]
[ECO "B25"]
[WhiteElo "1973"]
[BlackElo "2273"]
[Annotator "ChessBase"]
[PlyCount "70"]
[EventDate "2019.01.26"]
[EventType "team-tourn"]
[EventCountry "LTU"]
[SourceTitle "playchess.com"]
[Source "ChessBase"]
[SourceQuality "1"]
[TimeControl "40/5400+30:1800+30"]

1. e4 {[%emt 0:00:00]} g6 {[%emt 0:00:00]} 2. Nc3 {[%emt 0:00:11]} Bg7 {[%emt 0:00:00]} 3. g3 {[%emt 0:00:02]} c5 {[%emt 0:00:00]} 4. Bg2 {[%emt 0:00:05]} Nc6 {[%emt 0:00:06]} 5. d3 {[%emt 0:00:05]} d6 {[%emt 0:00:27]} 6. f4 {[%emt 0:00:04]} e6 {[%emt 0:00:12]} 7. Nf3 {[%emt 0:00:05]} Nge7 {[%emt 0:00:15]} 8. O-O {[%emt 0:00:06]} O-O {[%emt 0:00:03]} 9. Ne2 {[%emt 0:01:11]} Rb8 {[%emt 0:01:13]} 10. g4 {[%emt 0:00:08]} Nd4 {[%emt 0:01:45]} 11. Ng3 {[%emt 0:01:05]} Nxf3+ {[%emt 0:00:43]} 12. Qxf3 {[%emt 0:00:09]} f5 {[%emt 0:00:12]} 13. Kf2 {[%emt 0:14:01]} fxg4 {[%emt 0:04:59]} 14. Qxg4 {[%emt 0:04:42]} e5 {[%emt 0:00:39]} 15. f5 {[%emt 0:07:17]} gxf5 {[%emt 0:01:35]} 16. exf5 {[%emt 0:04:25]} Nxf5 {[%emt 0:01:29]} 17. Kg1 {[%emt 0:06:41]} Ne3 {[%emt 0:11:34]} 18. Qh5 {[%emt 0:00:03]} Rxf1+ {[%emt 0:02:08]} 19. Nxf1 {[%emt 0:00:19]} Bg4 {[%emt 0:03:44]} 20. Bd5+ {[%emt 0:00:13]} Kh8 {[%emt 0:00:10]} 21. Qf7 {[%emt 0:00:05]} Nxd5 {[%emt 0:00:50]} 22. Qxd5 {[%emt 0:00:07]} Qf6 {[%emt 0:01:35]} 23. Ng3 {[%emt 0:00:49]} Bf3 {[%emt 0:00:36]} 24. Qc4 {[%emt 0:00:34]} b5 {[%emt 0:02:07]} 25. Qc3 {[%emt 0:00:08]} Rf8 {[%emt 0:08:54]} 26. Be3 {[%emt 0:00:21]} Qg6 {[%emt 0:00:28]} 27. Qd2 {[%emt 0:00:28]} h5 {[%emt 0:14:07]} 28. Bg5 {[%emt 0:02:14]} e4 {[%emt 0:02:51]} 29. dxe4 {[%emt 0:04:55]} Bd4+ {[%emt 0:05:00]} 30. Be3 {[%emt 0:00:02]} Be5 {[%emt 0:00:11]} 31. Bg5 {[%emt 0:00:14]} h4 {[%emt 0:02:06]} 32. Bxh4 {[%emt 0:00:22]} Bd4+ {[%emt 0:00:37]} 33. Kf1 {[%emt 0:00:05]} Bxe4+ {[%emt 0:01:04]} 34. Ke1 {[%emt 0:00:07]} Bxc2 {[%emt 0:01:55]} 35. Rc1 {[%emt 0:01:10]} Re8+ {[%emt 0:01:03] Ra1} 0-1

[Event "LTU-chT 2019"]
[Site "Lithuania"]
[Date "2019.03.30"]
[Round "4.14"]
[White "Zickus, Simonas"]
[Black "Sarauskas, Andrius"]
[Result "1-0"]
[ECO "E68"]
[WhiteElo "2330"]
[BlackElo "1703"]
[Annotator "ChessBase"]
[PlyCount "75"]
[EventDate "2019.01.26"]
[EventType "team-tourn"]
[EventCountry "LTU"]
[SourceTitle "playchess.com"]
[Source "ChessBase"]
[SourceQuality "1"]
[TimeControl "40/5400+30:1800+30"]

1. Nf3 {[%emt 0:00:00]} Nf6 {[%emt 0:00:00]} 2. c4 {[%emt 0:00:00]} g6 {[%emt 0:00:00]} 3. g3 {[%emt 0:00:00]} Bg7 {[%emt 0:00:00]} 4. Bg2 {[%emt 0:00:00]} O-O {[%emt 0:00:21]} 5. O-O {[%emt 0:00:00]} d6 {[%emt 0:00:52]} 6. d4 {[%emt 0:00:02]} Nbd7 {[%emt 0:00:15]} 7. Nc3 {[%emt 0:00:09]} e5 {[%emt 0:01:22]} 8. e4 {[%emt 0:00:15]} Re8 {[%emt 0:01:04]} 9. h3 {[%emt 0:01:49]} a6 {[%emt 0:03:13]} 10. Be3 {[%emt 0:00:25]} exd4 {[%emt 0:01:18]} 11. Nxd4 {[%emt 0:00:08]} Rb8 {[%emt 0:00:21]} 12. Qc2 {[%emt 0:00:28]} Ne5 {[%emt 0:06:45]} 13. b3 {[%emt 0:00:23]} c5 {[%emt 0:00:48]} 14. Nde2 {[%emt 0:02:58]} b5 {[%emt 0:01:22]} 15. Rad1 {[%emt 0:03:42]} Qc7 {[%emt 0:13:30]} 16. f4 {[%emt 0:05:38]} Nc6 {[%emt 0:04:27]} 17. cxb5 {[%emt 0:08:38]} axb5 {[%emt 0:04:21]} 18. Qd3 {[%emt 0:00:31]} Rd8 {[%emt 0:22:08]} 19. Nxb5 {[%emt 0:01:58]} Qb6 {[%emt 0:00:09]} 20. a4 {[%emt 0:14:05]} Ba6 {[%emt 0:04:00]} 21. Nec3 {[%emt 0:00:08]} Ne8 {[%emt 0:07:12]} 22. Rf2 {[%emt 0:07:31]} Nc7 {[%emt 0:05:23]} 23. Bf1 {[%emt 0:00:28]} Nd4 {[%emt 0:02:15]} 24. b4 {[%emt 0:04:29]} Bxb5 {[%emt 0:04:56]} 25. axb5 {[%emt 0:02:43]} Ra8 {[%emt 0:00:14]} 26. Qc4 {[%emt 0:17:29]} Ra3 {[%emt 0:04:41]} 27. Rd3 {[%emt 0:00:06]} Rb8 {[%emt 0:09:56]} 28. e5 {[%emt 0:03:23]} Ncxb5 {[%emt 0:00:44]} 29. Nxb5 {[%emt 0:08:52]} Rxd3 {[%emt 0:00:07]} 30. Bxd3 {[%emt 0:03:50]} Qxb5 {[%emt 0:00:08]} 31. Qxb5 {[%emt 0:01:33]} Nxb5 {[%emt 0:00:02]} 32. bxc5 {[%emt 0:05:42]} dxe5 {[%emt 0:00:08]} 33. c6 {[%emt 0:01:44]} Nc7 {[%emt 0:01:26]} 34. Bc4 {[%emt 0:03:29]} Rb4 {[%emt 0:01:37]} 35. Ba2 {[%emt 0:00:44]} e4 {[%emt 0:01:31]} 36. Rd2 {[%emt 0:00:10]} Bf8 {[%emt 0:00:44]} 37. Rd7 {[%emt 0:00:30]} Ne6 {[%emt 0:00:38]} 38. c7 {[%emt 0:00:59]} 1-0

[Event "LTU-chT 2019"]
[Site "Lithuania"]
[Date "2019.03.30"]
[Round "4.15"]
[White "Setikiene, Grazina"]
[Black "Viskelis, Darius"]
[Result "0-1"]
[ECO "D02"]
[WhiteElo "1862"]
[BlackElo "2242"]
[Annotator "NA"]
[PlyCount "62"]
[EventDate "2019.01.26"]
[EventType "team-tourn"]
[EventCountry "LTU"]
[SourceTitle "playchess.com"]
[Source "ChessBase"]
[SourceQuality "1"]
[TimeControl "40/5400+30:1800+30"]

1. d4 {[%emt 0:00:00]} d5 {[%emt 0:00:00]} 2. Nf3 {[%emt 0:00:00]} e6 {[%emt 0:00:00]} 3. Nc3 {[%emt 0:01:37]} c5 {[%emt 0:00:55]} 4. e3 {[%emt 0:00:25]} Nc6 {[%emt 0:00:26]} 5. Bb5 {[%emt 0:00:32]} Bd7 {[%emt 0:00:42]} 6. O-O {[%emt 0:00:23] D00: 1 d4 d5: Unusual lines} Nf6 {[%emt 0:00:28]} 7. a3 {[%emt 0:03:59]} a6 {[%emt 0:01:56]} 8. Bxc6 {[%emt 0:00:10]} Bxc6 {[%emt 0:00:06]} 9. Ne5 {[%emt 0:00:30]} Bd6 {[%emt 0:00:55]} 10. f4 $146 {[%emt 0:01:13]} ({Predecessor:} 10. Nxc6 bxc6 11. dxc5 Bxc5 12. e4 Qb8 13. Re1 O-O 14. e5 Nd7 15. Na4 Ba7 16. Bf4 f6 17. Qg4 Rf7 18. exf6 Qb5 {0-1 (18) Lines,D-Koegeler,A (2165) ICCF email 2013}) 10... O-O {[%emt 0:01:09]} 11. b3 {[%emt 0:01:44]} Rc8 {[%emt 0:01:15]} 12. Nxc6 {[%emt 0:01:55]} bxc6 {[%emt 0:00:45]} 13. Qd3 {[%emt 0:02:40]} cxd4 {[%emt 0:01:08]} 14. exd4 {[%emt 0:00:27]} c5 {[%emt 0:00:14]} 15. Kh1 {[%emt 0:04:25]} cxd4 {[%emt 0:05:09]} 16. Ne2 {[%emt 0:01:22]} Ng4 {[%emt 0:04:22]} 17. h3 {[%emt 0:02:56]} Qh4 {[%emt 0:00:50]} 18. Kg1 {[%emt 0:00:37]} Ne3 {[%emt 0:00:57]} 19. Bxe3 {[%emt 0:02:36]} dxe3 {[%emt 0:00:23]} 20. b4 {[%emt 0:03:25]} Rc4 {[%emt 0:06:22]} 21. Rf3 {[%emt 0:05:39]} Rfc8 {[%emt 0:01:46]} 22. c3 {[%emt 0:00:18]} Bxf4 {[%emt 0:05:50]} 23. Rxf4 {[%emt 0:15:08]} Rxf4 {[%emt 0:00:15]} 24. g3 {[%emt 0:00:06]} Qxh3 {[%emt 0:00:58]} 25. Nxf4 {[%emt 0:00:17]} Qxg3+ {[%emt 0:00:27]} 26. Ng2 {[%emt 0:00:10] [#]} Qf2+ $1 {[%emt 0:01:34]} 27. Kh1 {[%emt 0:00:34]} Rc4 {[%emt 0:01:51]} 28. Rf1 {[%emt 0:07:36]} Qd2 {[%emt 0:01:53]} 29. Qb1 $2 {[%emt 0:05:18]} (29. Rd1 Qxc3 30. Kg1) 29... Rg4 {[%emt 0:03:03]} 30. Rg1 {[%emt 0:00:27]} Rg5 {[%emt 0:01:01]} 31. Qd1 {[%emt 0:05:30]} Rxg2 {[%emt 0:01:09]} 0-1

[Event "LTU-chT 2019"]
[Site "Lithuania"]
[Date "2019.03.30"]
[Round "4.16"]
[White "Indriunas, Matas"]
[Black "Labanauskas, Dovydas"]
[Result "1-0"]
[ECO "B01"]
[WhiteElo "1908"]
[BlackElo "1586"]
[Annotator "NA"]
[PlyCount "61"]
[EventDate "2019.01.26"]
[EventType "team-tourn"]
[EventCountry "LTU"]
[SourceTitle "playchess.com"]
[Source "ChessBase"]
[SourceQuality "1"]
[TimeControl "40/5400+30:1800+30"]

1. e4 {[%emt 0:00:00]} d5 {[%emt 0:00:00]} 2. exd5 {[%emt 0:00:00]} Nf6 {[%emt 0:00:00]} 3. d4 {[%emt 0:00:00]} Nxd5 {[%emt 0:00:00]} 4. c4 {[%emt 0:00:20]} Nb6 {[%emt 0:00:04]} 5. Nf3 {[%emt 0:01:06]} g6 {[%emt 0:01:36]} 6. c5 {[%emt 0:00:21]} Nd5 {[%emt 0:00:48]} 7. Bc4 {[%emt 0:00:11]} Bg7 {[%emt 0:01:17]} 8. Qb3 {[%emt 0:01:34]} e6 {[%emt 0:02:23]} 9. Nc3 {[%emt 0:01:13]} Nxc3 {[%emt 0:01:36]} 10. bxc3 {[%emt 0:00:10]} Nc6 {[%emt 0:00:47]} 11. O-O {[%emt 0:01:37]} O-O {[%emt 0:01:25]} 12. Bg5 {[%emt 0:03:06]} Bf6 {[%emt 0:03:05]} 13. Bxf6 {[%emt 0:03:51]} Qxf6 {[%emt 0:00:16]} 14. Bb5 {[%emt 0:11:50]} Ne7 {[%emt 0:10:36]} 15. Ne5 {[%emt 0:02:06]} Rd8 {[%emt 0:03:38]} 16. Rad1 {[%emt 0:03:48]} a6 {[%emt 0:02:15]} 17. Bc4 {[%emt 0:01:43]} Nd5 {[%emt 0:01:57]} 18. Rd3 {[%emt 0:01:15]} Qe7 {[%emt 0:06:29]} 19. Re1 {[%emt 0:05:17]} Bd7 {[%emt 0:07:52]} 20. Rf3 {[%emt 0:09:30]} Be8 {[%emt 0:14:22]} 21. Nxf7 {[%emt 0:02:21]} Bxf7 {[%emt 0:02:46]} 22. Bxd5 {[%emt 0:00:08]} Re8 {[%emt 0:01:25]} 23. Rfe3 {[%emt 0:00:51]} Qg5 {[%emt 0:02:17]} 24. Bxe6 {[%emt 0:00:47]} Rxe6 {[%emt 0:01:10]} 25. Rxe6 {[%emt 0:00:11]} Bxe6 {[%emt 0:00:31]} 26. Qxe6+ {[%emt 0:01:48]} Kf8 {[%emt 0:00:04]} 27. f4 {[%emt 0:00:36]} Qd8 {[%emt 0:01:04]} 28. f5 {[%emt 0:00:41]} gxf5 {[%emt 0:00:22]} 29. Rf1 {[%emt 0:00:10]} Qe7 {[%emt 0:00:24]} 30. Rxf5+ {[%emt 0:00:56]} Ke8 {[%emt 0:00:08]} 31. Qg8+ {[%emt 0:00:08]} 1-0

[Event "LTU-chT 2019"]
[Site "Lithuania"]
[Date "2019.03.30"]
[Round "4.17"]
[White "Vilkys, Benediktas"]
[Black "Maziukas, Kasparas"]
[Result "0-1"]
[ECO "A48"]
[WhiteElo "1492"]
[BlackElo "1931"]
[Annotator "NA"]
[PlyCount "176"]
[EventDate "2019.01.26"]
[EventType "team-tourn"]
[EventCountry "LTU"]
[SourceTitle "playchess.com"]
[Source "ChessBase"]
[SourceQuality "1"]
[TimeControl "40/5400+30:1800+30"]

1. d4 {[%emt 0:00:00]} Nf6 {[%emt 0:00:00]} 2. Nf3 {[%emt 0:00:00]} g6 {[%emt 0:00:00]} 3. Bf4 {[%emt 0:00:17]} Bg7 {[%emt 0:00:05]} 4. e3 {[%emt 0:01:10]} O-O {[%emt 0:00:09]} 5. h3 {[%emt 0:01:34]} d6 {[%emt 0:00:09]} 6. Be2 {[%emt 0:01:06]} Nbd7 {[%emt 0:00:15]} 7. O-O {[%emt 0:00:57]} b6 {[%emt 0:00:04]} 8. c4 {[%emt 0:01:22]} Bb7 {[%emt 0:00:32]} 9. Nc3 {[%emt 0:01:28]} c5 {[%emt 0:01:37]} 10. d5 {[%emt 0:02:06] E61: King's Indian: Early deviations for White, including Smyslov System} a6 {[%emt 0:02:35]} 11. Qd2 {[%emt 0:07:10]} (11. a4 Qc7 12. e4 Rad8 13. Qd2 Bc8 14. Rfe1 Rfe8 15. Bf1 Nh5 16. Bh2 {½-½ (36) Karjakin,S (2783)-Nepomniachtchi,I (2751) chess.com INT 2017}) 11... b5 {[%emt 0:01:28]} 12. cxb5 {[%emt 0:06:36]} axb5 {[%emt 0:00:07]} 13. Bxb5 {[%emt 0:00:13]} Qb6 $146 {[%emt 0:01:35]} ({Predecessor:} 13... Qa5 14. a4 Rfc8 15. e4 Ba6 16. Qc2 Bxb5 17. Nxb5 {½-½ (37) Lagowski,P (2320)-Skalski,M (2137) Bartkowa 2002}) 14. Bxd7 {[%emt 0:01:48]} Nxd7 {[%emt 0:00:07]} 15. Rfe1 {[%emt 0:01:54]} Ba6 {[%emt 0:02:30]} 16. e4 {[%emt 0:02:34]} Rfb8 {[%emt 0:00:06]} 17. Rab1 {[%emt 0:02:51]} Qc7 {[%emt 0:01:58]} 18. Bg5 {[%emt 0:05:20]} Ne5 {[%emt 0:00:37]} 19. Nxe5 {[%emt 0:02:48]} Bxe5 {[%emt 0:00:06]} 20. f4 {[%emt 0:02:56]} Bd4+ {[%emt 0:00:05]} 21. Kh1 {[%emt 0:00:56]} f6 {[%emt 0:01:17]} 22. Bh4 {[%emt 0:00:55]} Rb4 {[%emt 0:01:19]} 23. Bf2 {[%emt 0:04:03]} Rab8 {[%emt 0:00:52]} 24. b3 {[%emt 0:05:40]} Bxf2 {[%emt 0:01:30]} 25. Qxf2 {[%emt 0:00:46]} c4 {[%emt 0:00:57]} 26. Qc2 {[%emt 0:05:23]} cxb3 {[%emt 0:00:45]} 27. axb3 {[%emt 0:02:27]} Rc8 {[%emt 0:00:32]} 28. Rec1 {[%emt 0:02:25]} Qb6 {[%emt 0:01:57]} 29. Qb2 {[%emt 0:08:43]} Bd3 {[%emt 0:00:21]} 30. Ra1 {[%emt 0:03:09]} Rxb3 {[%emt 0:01:01]} 31. Qd2 {[%emt 0:01:06]} Qd4 {[%emt 0:02:20]} 32. Ra4 {[%emt 0:04:59] [#]} Rc4 $1 {[%emt 0:05:29]} 33. Rxc4 {[%emt 0:00:51]} Qxc4 {[%emt 0:00:06]} 34. Kh2 {[%emt 0:02:36]} Bxe4 {[%emt 0:01:01]} 35. Nxe4 {[%emt 0:00:26]} Qxe4 {[%emt 0:00:05]} 36. Re1 {[%emt 0:00:39]} Rd3 {[%emt 0:00:51]} 37. Rxe4 {[%emt 0:01:58]} Rxd2 {[%emt 0:00:06]} 38. Rxe7 {[%emt 0:00:06]} Rxd5 {[%emt 0:00:04]} 39. Kg3 {[%emt 0:00:26]} Rd4 {[%emt 0:01:53]} 40. Kf3 {[%emt 0:01:01]} h5 {[%emt 0:00:52]} 41. Ke3 {[%emt 0:30:34]} Rd1 {[%emt 0:30:26]} 42. Rd7 $11 {[%emt 0:00:23]} Kf8 {[%emt 0:01:25]} 43. Ke2 {[%emt 0:00:50]} Rd5 {[%emt 0:00:09]} 44. Ke3 {[%emt 0:00:23]} h4 {[%emt 0:04:10]} 45. Rh7 {[%emt 0:01:44]} g5 {[%emt 0:05:10]} 46. Ke4 {[%emt 0:02:29]} Ra5 {[%emt 0:00:24]} 47. fxg5 {[%emt 0:01:24]} Rxg5 {[%emt 0:04:12]} 48. Rd7 {[%emt 0:00:52]} Rxg2 {[%emt 0:00:32]} 49. Rxd6 {[%emt 0:00:22]} Ke7 {[%emt 0:00:12]} 50. Rd3 {[%emt 0:00:51]} Ke6 {[%emt 0:00:18]} 51. Re3 {[%emt 0:01:20]} Rf2 {[%emt 0:00:32]} 52. Rd3 {[%emt 0:01:12]} f5+ {[%emt 0:01:04]} 53. Ke3 {[%emt 0:00:31]} Rf1 {[%emt 0:00:35]} 54. Rd4 {[%emt 0:00:28]} Ke5 {[%emt 0:02:37]} 55. Rxh4 {[%emt 0:00:17]} Ra1 {[%emt 0:00:11]} 56. Rh8 {[%emt 0:00:43]} Ra3+ {[%emt 0:00:07]} 57. Kf2 {[%emt 0:00:57]} Ke4 {[%emt 0:00:05]} 58. h4 {[%emt 0:01:08]} Ra2+ {[%emt 0:00:14]} 59. Ke1 {[%emt 0:00:44]} Ke3 {[%emt 0:00:52]} 60. Re8+ {[%emt 0:00:20]} Kf3 {[%emt 0:00:15]} 61. h5 {[%emt 0:01:06]} Rh2 {[%emt 0:00:55]} 62. Rh8 {[%emt 0:00:18]} f4 {[%emt 0:02:22]} 63. h6 {[%emt 0:00:25]} Rh1+ {[%emt 0:00:43]} 64. Kd2 {[%emt 0:00:12]} Kf2 {[%emt 0:00:26]} 65. h7 {[%emt 0:00:35]} f3 {[%emt 0:00:08]} 66. Kd3 {[%emt 0:00:38]} Rh4 {[%emt 0:00:25]} 67. Kd2 {[%emt 0:00:39]} Rd4+ {[%emt 0:00:05]} 68. Kc3 {[%emt 0:00:35]} Rd7 {[%emt 0:00:02]} 69. Kc2 {[%emt 0:00:55]} Rf7 {[%emt 0:00:26]} 70. Kd3 {[%emt 0:00:49]} Kf1 {[%emt 0:00:13]} 71. Ke3 {[%emt 0:00:41]} f2 {[%emt 0:00:16]} 72. Kd2 {[%emt 0:00:14]} Rd7+ {[%emt 0:00:51]} 73. Kc2 {[%emt 0:01:04]} Re7 {[%emt 0:03:10]} 74. Kd2 {[%emt 0:00:23]} Rg7 {[%emt 0:00:40]} 75. Kc3 {[%emt 0:01:22]} Rb7 {[%emt 0:00:44]} 76. Kc2 {[%emt 0:00:54]} Rc7+ {[%emt 0:00:19]} 77. Kd2 {[%emt 0:00:23]} Ra7 {[%emt 0:00:08]} 78. Kc3 {[%emt 0:00:20]} Ra3+ {[%emt 0:00:18]} 79. Kd4 {[%emt 0:00:30]} Rh3 {[%emt 0:00:32]} 80. Kc5 {[%emt 0:01:35]} Rh4 {[%emt 0:00:23]} 81. Kd5 {[%emt 0:00:31]} Ke2 {[%emt 0:01:10]} 82. Re8+ {[%emt 0:00:27]} Kd3 {[%emt 0:00:08]} 83. Rf8 {[%emt 0:00:17]} Rh5+ {[%emt 0:00:05]} 84. Kd6 {[%emt 0:01:03]} Ke2 {[%emt 0:00:32]} 85. Re8+ {[%emt 0:00:16]} Kd3 {[%emt 0:00:37]} 86. Rf8 {[%emt 0:00:17]} Ke3 {[%emt 0:00:20]} 87. Re8+ {[%emt 0:00:42]} Kd4 {[%emt 0:00:17]} 88. Rf8 {[%emt 0:00:16]} Rh6+ {[%emt 0:00:07]} 0-1

[Event "LTU-chT 2019"]
[Site "Lithuania"]
[Date "2019.03.30"]
[Round "4.18"]
[White "Likatavicius, Rapolas"]
[Black "Liandzbergas, Mykolas"]
[Result "1-0"]
[ECO "A40"]
[WhiteElo "1769"]
[BlackElo "1467"]
[Annotator "NA"]
[PlyCount "57"]
[EventDate "2019.01.26"]
[EventType "team-tourn"]
[EventCountry "LTU"]
[SourceTitle "playchess.com"]
[Source "ChessBase"]
[SourceQuality "1"]
[TimeControl "40/5400+30:1800+30"]

1. d4 {[%emt 0:04:15]} e6 {[%emt 0:00:00]} 2. Nf3 {[%emt 0:01:03]} f5 {[%emt 0:00:45]} 3. c4 {[%emt 0:00:25]} c6 {[%emt 0:00:54]} 4. g3 {[%emt 0:00:36]} Nf6 {[%emt 0:00:09]} 5. Bg2 {[%emt 0:00:09]} d5 {[%emt 0:00:46]} 6. O-O {[%emt 0:02:26]} Bd6 {[%emt 0:01:50]} 7. Nc3 {[%emt 0:06:16]} O-O {[%emt 0:00:33]} 8. Ne5 {[%emt 0:03:08]} Bd7 {[%emt 0:00:28]} 9. Bf4 {[%emt 0:06:27]} Be8 {[%emt 0:00:18]} 10. Qb3 {[%emt 0:02:21]} Qc7 {[%emt 0:00:18]} 11. c5 {[%emt 0:00:26]} Bxe5 {[%emt 0:00:58]} 12. Bxe5 {[%emt 0:00:04]} Qc8 {[%emt 0:00:09]} 13. Bd6 {[%emt 0:02:06]} Rf7 {[%emt 0:00:18]} 14. f3 {[%emt 0:00:28]} g5 {[%emt 0:02:05]} 15. e4 {[%emt 0:08:57]} Kg7 {[%emt 0:00:38]} 16. Qc2 {[%emt 0:02:44]} Bd7 {[%emt 0:00:32]} 17. Rae1 {[%emt 0:13:01]} Ne8 {[%emt 0:01:32]} 18. Be5+ {[%emt 0:01:50]} Kg8 {[%emt 0:00:05]} 19. Qd2 {[%emt 0:00:26]} h6 {[%emt 0:00:21]} 20. Re2 {[%emt 0:07:42]} b6 {[%emt 0:00:37]} 21. b4 {[%emt 0:00:20]} Na6 {[%emt 0:00:06]} 22. Na4 {[%emt 0:04:40]} Qb7 {[%emt 0:00:35]} 23. h4 {[%emt 0:03:06]} Ng7 {[%emt 0:01:00]} 24. hxg5 {[%emt 0:00:28]} hxg5 {[%emt 0:00:02]} 25. a3 {[%emt 0:03:44]} fxe4 {[%emt 0:00:21]} 26. fxe4 {[%emt 0:00:09]} Rxf1+ {[%emt 0:00:03]} 27. Bxf1 {[%emt 0:00:12]} b5 {[%emt 0:00:14]} 28. Qxg5 {[%emt 0:00:37]} Be8 {[%emt 0:00:07]} 29. Bh3 {[%emt 0:01:14]} 1-0

[Event "LTU-chT 2019"]
[Site "Lithuania"]
[Date "2019.03.30"]
[Round "4.19"]
[White "Norkeliunas, Matas"]
[Black "Zilakauskis, Steponas"]
[Result "0-1"]
[ECO "A00"]
[WhiteElo "1347"]
[BlackElo "1679"]
[Annotator "NA"]
[PlyCount "64"]
[EventDate "2019.01.26"]
[EventType "team-tourn"]
[EventCountry "LTU"]
[SourceTitle "playchess.com"]
[Source "ChessBase"]
[SourceQuality "1"]
[TimeControl "40/5400+30:1800+30"]

1. b4 {[%emt 0:00:00]} e5 {[%emt 0:01:55]} 2. Bb2 {[%emt 0:00:21]} e4 {[%emt 0:02:31]} 3. e3 {[%emt 0:00:12]} Nf6 {[%emt 0:01:02]} 4. a3 {[%emt 0:01:42]} d5 {[%emt 0:00:51]} 5. c4 {[%emt 0:01:50]} Be6 {[%emt 0:11:40]} 6. Bxf6 {[%emt 0:04:13]} Qxf6 {[%emt 0:01:09]} 7. Nc3 {[%emt 0:00:16]} c6 {[%emt 0:04:14]} 8. cxd5 {[%emt 0:00:39]} Bxd5 {[%emt 0:02:19]} 9. Nxd5 {[%emt 0:03:18]} cxd5 {[%emt 0:00:06]} 10. Bb5+ {[%emt 0:00:48]} Nc6 {[%emt 0:00:08]} 11. Ne2 {[%emt 0:00:51]} a6 {[%emt 0:02:32]} 12. Bxc6+ {[%emt 0:00:19]} Qxc6 {[%emt 0:00:32]} 13. Rc1 {[%emt 0:00:43]} Qd7 {[%emt 0:00:24]} 14. Qc2 {[%emt 0:02:22]} Bd6 {[%emt 0:01:22]} 15. Nc3 {[%emt 0:00:38]} Rc8 {[%emt 0:00:48]} 16. Qd1 {[%emt 0:03:03]} Be5 {[%emt 0:05:35]} 17. O-O {[%emt 0:00:23]} O-O {[%emt 0:00:30]} 18. f4 {[%emt 0:01:42]} Bb8 {[%emt 0:02:29]} 19. Qh5 {[%emt 0:01:27]} f5 {[%emt 0:00:30]} 20. Qe2 {[%emt 0:03:16]} d4 {[%emt 0:01:39]} 21. exd4 {[%emt 0:00:38]} Qxd4+ {[%emt 0:00:07]} 22. Qe3 {[%emt 0:00:39]} Qd7 {[%emt 0:06:23]} 23. Ne2 {[%emt 0:01:50]} Rxc1 {[%emt 0:00:51]} 24. Rxc1 {[%emt 0:00:09]} Rd8 {[%emt 0:00:32]} 25. Ng3 {[%emt 0:00:53]} b5 {[%emt 0:02:33]} 26. Qb3+ {[%emt 0:01:23]} Kh8 {[%emt 0:00:15]} 27. Qc3 {[%emt 0:01:17]} Bxf4 {[%emt 0:01:15]} 28. Nf1 {[%emt 0:00:21]} h6 {[%emt 0:01:31]} 29. Qc6 {[%emt 0:00:24]} Bxd2 {[%emt 0:02:46]} 30. Qxd7 {[%emt 0:01:00]} Rxd7 {[%emt 0:00:07]} 31. Rc6 {[%emt 0:00:23]} e3 {[%emt 0:00:10]} 32. Ng3 {[%emt 0:00:20]} e2 {[%emt 0:00:23]} 0-1

[Event "LTU-chT 2019"]
[Site "Lithuania"]
[Date "2019.03.30"]
[Round "4.20"]
[White "Dailidenas, Justas"]
[Black "Antanauskas, Julius"]
[Result "1-0"]
[ECO "C64"]
[WhiteElo "1658"]
[BlackElo "1180"]
[Annotator "NA"]
[PlyCount "59"]
[EventDate "2019.01.26"]
[EventType "team-tourn"]
[EventCountry "LTU"]
[SourceTitle "playchess.com"]
[Source "ChessBase"]
[SourceQuality "1"]
[TimeControl "40/5400+30:1800+30"]

1. e4 {[%emt 0:00:00]} e5 {[%emt 0:00:00]} 2. Nf3 {[%emt 0:00:02]} Nc6 {[%emt 0:00:31]} 3. Bb5 {[%emt 0:00:11]} Bc5 {[%emt 0:01:19]} 4. O-O {[%emt 0:00:49]} d6 {[%emt 0:01:05]} 5. d4 {[%emt 0:01:32]} exd4 {[%emt 0:02:27]} 6. Nxd4 {[%emt 0:00:55]} Bd7 {[%emt 0:02:09]} 7. Nxc6 {[%emt 0:01:12]} Bxc6 {[%emt 0:01:36]} 8. Bxc6+ {[%emt 0:00:13]} bxc6 {[%emt 0:00:10]} 9. Nc3 {[%emt 0:01:10]} Ne7 {[%emt 0:06:17]} 10. Bf4 {[%emt 0:07:49]} Ng6 {[%emt 0:01:38]} 11. Bg3 {[%emt 0:00:06]} O-O {[%emt 0:00:40]} 12. Qd3 {[%emt 0:12:56]} Re8 {[%emt 0:05:33]} 13. Rad1 {[%emt 0:03:28]} Ne5 {[%emt 0:05:45]} 14. Bxe5 {[%emt 0:00:11]} Rxe5 {[%emt 0:00:49]} 15. Kh1 {[%emt 0:07:14]} Qf6 {[%emt 0:06:34]} 16. f4 {[%emt 0:03:44]} Ree8 {[%emt 0:00:40]} 17. Rde1 {[%emt 0:10:52]} Qg6 18. Qa6 {[%emt 0:06:23]} Bb6 {[%emt 0:06:19]} 19. Qc4 {[%emt 0:03:56]} c5 {[%emt 0:04:09]} 20. Nd5 Rab8 {[%emt 0:02:01]} 21. f5 {[%emt 0:09:57]} Qh6 {[%emt 0:02:11]} 22. f6 {[%emt 0:04:23]} g6 {[%emt 0:01:00]} 23. Re3 {[%emt 0:03:07]} c6 {[%emt 0:03:55]} 24. Ne7+ {[%emt 0:00:06]} Rxe7 {[%emt 0:01:48]} 25. fxe7 {[%emt 0:00:08]} d5 {[%emt 0:01:07]} 26. exd5 {[%emt 0:03:38]} Qxe3 {[%emt 0:00:45]} 27. d6 {[%emt 0:00:09]} Qe6 {[%emt 0:01:18]} 28. Qxe6 {[%emt 0:01:00]} fxe6 {[%emt 0:00:07]} 29. d7 {[%emt 0:00:05]} Kg7 {[%emt 0:01:41]} 30. e8=Q {[%emt 0:00:43]} 1-0